Cogmind - Beta 14 *** ADVENTURER MODE // 2024.08.09 @ 16:45:46 Player: Bob Result: Self-destructed Performance ------------- Evolutions (4) 2000 Regions Visited (6) 1200 Robots Destroyed (59) 295 Value Destroyed (2037) 2037 Prototype IDs (5) 100 Alien Tech Used (0) 0 Bonus (2612) 2612 TOTAL SCORE: 8244 Bonus ------- Unstable Evolution 2000 High Alert Combat Kills 112 Entered DSFs 500 Cogmind --------- Core Integrity 828/850 Matter 27/300 Energy 100/100 System Corruption 1% Temperature Cool (0) Movement Flying (250) Ox3 Location -6/Factory Parts ------- > --- POWER (1) -------- (None) > --- PROPULSION (4) --- Improved Flight Unit > --- UTILITY (4) ------ Advanced Visual Processing Unit Heavy Reflective Plating > --- WEAPON (6) ------- Rocket Launcher > --- INVENTORY (5) ---- Light Nuclear Core Light Nuclear Core Light Nuclear Core Improved Deuterium Engine Particle Charger Peak State ------------ > --- POWER ------------ Deuterium Engine > --- PROPULSION ------- Light Treads Light Treads > --- UTILITY ---------- Cooling System Large Storage Unit Heavy Reflective Plating > --- WEAPON ----------- Advanced Beam Cannon Advanced Beam Cannon Advanced Beam Cannon Advanced Beam Cannon > --- INVENTORY -------- Light Treads Light Treads Improved Flight Unit Cesium-ion Thruster Advanced Visual Processing Unit Particle Charger Heavy Reflective Plating Rocket Launcher Rocket Launcher [Rating: 32] Favorites ----------- Power Cooled Ion Engine Engine Cooled Ion Engine Power Core Light Nuclear Core Propulsion Light Treads Treads Light Treads Leg Aluminum Leg Flight Unit Improved Flight Unit Utility Hardened Light Armor Plating Device Cooling System Storage Large Storage Unit Processor Advanced Visual Processing Unit Protection Hardened Light Armor Plating Weapon Advanced Beam Cannon Energy Gun Improved Medium Laser Energy Cannon Advanced Beam Cannon Ballistic Gun Assault Rifle Launcher Rocket Launcher Impact Weapon Mace Build | -11 -10 -9 -8 -7 -7 -6 ------- Run | Yrd Mat Mat Mat Fac DSF Fac Slots Evolved 8 | . . 2 2 2 . 2 Power . | . . . . . . . Propulsion 2 | . . 1 1 . . . Utility 2 | . . . 1 1 . . Weapon 4 | . . 1 . 1 . 2 Parts Attached 51 | 6 . 18 12 3 5 7 Power 4 | 1 . 2 1 . . . Engine 3 | 1 . 1 1 . . . Core 1 | . . 1 . . . . Reactor . | . . . . . . . Propulsion 21 | 2 . 7 6 . 4 2 Treads 11 | . . 3 6 . 2 . Leg 4 | 2 . 2 . . . . Wheel . | . . . . . . . Hover . | . . . . . . . Flight 6 | . . 2 . . 2 2 Utility 10 | 1 . 3 3 . 1 2 Device 2 | . . 1 1 . . . Storage 2 | 1 . . 1 . . . Processor 1 | . . . . . . 1 Hackware . | . . . . . . . Protection 5 | . . 2 1 . 1 1 Artifact . | . . . . . . . Weapon 16 | 2 . 6 2 3 . 3 Energy Gun 3 | . . 2 1 . . . Energy Cannon 7 | . . 3 1 3 . . Ballistic Gun 2 | 2 . . . . . . Ballistic Cannon . | . . . . . . . Launcher 3 | . . . . . . 3 Special Weapon . | . . . . . . . Impact Weapon 1 | . . 1 . . . . Slashing Weapon . | . . . . . . . Piercing Weapon . | . . . . . . . Special Melee Weapon . | . . . . . . . Unidentified Prototypes 5 | . . 3 1 . 1 . Parts Lost 14 | . . 2 . . 10 2 Power 1 | . . . . . 1 . Propulsion 7 | . . 2 . . 4 1 Utility 1 | . . . . . 1 . Weapon 5 | . . . . . 4 1 Highest Loss Streak 10 | . . 1 . . 10 1 To Critical Strikes . | . . . . . . . Average Slot Usage (%) 69 | . 85 71 98 84 59 24 Engine 7 | . 14 9 9 7 2 . Treads 15 | . . 11 35 30 14 . Leg 4 | . 28 8 . . . . Flight 2 | . . . . . 3 7 Device 5 | . . 5 9 7 7 1 Storage 4 | . 14 3 2 7 7 4 Protection 6 | . . 3 14 7 3 2 Energy Cannon 14 | . . 15 27 23 20 . Ballistic Gun 4 | . 28 6 . . . . Launcher 1 | . . . . . . 5 Peak Build Rating 32 | 6 6 20 24 26 32 23 Average Rating 15 | 4 6 12 22 24 19 13 On Entrance 13 | . 6 6 20 23 25 11 Naked Turns . | . . . . . . . Heaviest Build 58 | 14 14 27 48 52 58 43 Greatest Support 80 | 20 20 60 80 80 80 10 Greatest Overweight (x) 8 | . . 1 . . 2 8 Average Overweight (x) . | . . . . . . 2 Largest Inventory Capacity 15 | 8 8 8 15 15 15 15 Average Capacity 8 | 6 8 5 8 15 15 12 Most Carried 12 | 5 1 5 10 10 12 11 Average Carried 4 | . . 3 5 9 7 6 Final Capacity 15 | 8 8 5 15 15 15 5 Final Carried 10 | . 1 5 10 7 6 5 Class Distribution -------------------- 46% | Mutant 29% | Scavenger-Tank 13% | Tank 10% | Gunner Dominant Class ---------------- Mutant | -10/Materials Mutant | -9/Materials Scavenger-Tank | -8/Materials Scavenger-Tank | -7/Factory Gunner | -7/DSF Mutant | -6/Factory Resources | -11 -10 -9 -8 -7 -7 -6 ----------- Run | Yrd Mat Mat Mat Fac DSF Fac Matter Collected 793 | 174 97 363 129 . 30 . Remotely . | . . . . . . . Salvage Created 2517 | . 196 910 1246 . 125 40 Parts 143 | . 8 62 63 . 6 4 Haulers Intercepted 7 | . . 4 3 . . . Recyclers Shooed . | . . . . . . . Parts Field Recycled . | . . . . . . . Retrieved Matter . | . . . . . . . Parts Self-Destructed . | . . . . . . . Prevented . | . . . . . . . Kills | -11 -10 -9 -8 -7 -7 -6 ------- Run | Yrd Mat Mat Mat Fac DSF Fac Combat Hostiles Destroyed 46 | . 4 18 19 . 2 3 Melee 1 | . . 1 . . . . Guns 9 | . 4 5 . . . . Cannons 30 | . . 11 18 . 1 . AOE 4 | . . . . . 1 3 Classes Destroyed 9 | . 1 4 3 . 1 . Worker 2 | . . 1 . . . 1 Builder 2 | . . . 1 . . 1 Hauler 7 | . . 4 3 . . . Watcher 2 | . . . 2 . . . Swarmer 3 | . . 3 . . . . Grunt 27 | . 4 10 11 . . 2 Sentry 13 | . . 5 7 . . 1 Specialist 2 | . . . . . 2 . Hunter 1 | . . . 1 . . . Best Kill Streak 6 | . 2 4 6 . 2 3 Combat Bots Only 4 | . 2 4 4 . 2 2 Max Kills in Single Turn 3 | . 1 1 3 . 1 2 Gunslinging . | . . . . . . . Exploded 1 | . . . . . 1 1 Melee 1 | . . 1 . . . . Uniques/NPCs Destroyed . | . . . . . . . Combat | -11 -10 -9 -8 -7 -7 -6 -------- Run | Yrd Mat Mat Mat Fac DSF Fac Hostile Shots Fired 293 | . 27 65 65 . 27 109 Missed 89 | . 9 21 17 . 5 37 Damage Taken 3331 | . 197 413 677 . 1578 466 Core 514 | . 41 128 25 . 298 22 Absorbed by Shields . | . . . . . . . Ignored by Resistances 1339 | . 55 120 187 . 711 266 Core Remaining (%) 80 | 100 83 68 95 . 57 . Volleys Fired 101 | . 16 37 37 . 2 9 Largest 3 | . 2 3 3 . 3 2 Hottest 204 | . 40 204 204 . 204 66 Shots Fired 259 | . 32 93 110 . 6 18 Gun 72 | . 32 40 . . . . Cannon 169 | . . 53 110 . 6 . Launcher 18 | . . . . . . 18 Special . | . . . . . . . Kinetic 68 | . 32 36 . . . . Thermal 173 | . . 57 110 . 6 . Explosive 18 | . . . . . . 18 Electromagnetic . | . . . . . . . Robot Hit Streak 25 | . 11 20 25 . 8 17 Robot Miss Streak 4 | . 2 4 2 . . 1 Penetration Max . | . . . . . . . Secondary Targets 2 | . 1 1 . . . . Max Gunslinging Chain 1 | . 1 1 . . . . Shots Hit Robots 186 | . 25 67 73 . 6 15 Core Hits 92 | . 9 25 38 . 2 18 Critical Kills 1 | . . . 1 . . . Critical Parts Destroyed 2 | . . 2 . . . . Critical Strikes 3 | . . 2 1 . . . Meltdown 1 | . . . 1 . . . Destroy 1 | . . 1 . . . . Smash 1 | . . 1 . . . . Melee Attacks 7 | . . 7 . . . . Impact 7 | . . 7 . . . . Slashing . | . . . . . . . Piercing . | . . . . . . . Sneak Attacks 1 | . . 1 . . . . Combat Hostiles . | . . . . . . . Follow-up Attacks . | . . . . . . . Damage Inflicted 4145 | . 323 1267 1697 . 123 735 Guns 639 | . 323 316 . . . . Cannons 2553 | . . 733 1697 . 123 . Explosions 735 | . . . . . . 735 Melee 218 | . . 218 . . . . Ramming . | . . . . . . . Kinetic 639 | . 323 316 . . . . Thermal 2553 | . . 733 1697 . 123 . Explosive 735 | . . . . . . 735 Electromagnetic . | . . . . . . . Impact 218 | . . 218 . . . . Slashing . | . . . . . . . Piercing . | . . . . . . . Highest Corruption 2 | . . 2 . . . 1 Average Corruption 1 | . . 1 . . . 1 Corruption Purged . | . . . . . . . Corruption Blocked . | . . . . . . . Effects 1 | . . 1 . . . . Matter Fused 1 | . . 1 . . . . Overload Shots . | . . . . . . . Overflow Damage 94 | . . 30 5 . . 59 Projectiles 5 | . . . 5 . . . Explosions 59 | . . . . . . 59 Melee 30 | . . 30 . . . . Knockbacks 1 | . . 1 . . . . Impact 1 | . . 1 . . . . Kinetic . | . . . . . . . Secondary . | . . . . . . . Self-Inflicted Damage . | . . . . . . . Shots . | . . . . . . . Rammed . | . . . . . . . Targets Rammed . | . . . . . . . Kicked . | . . . . . . . Crushed . | . . . . . . . Highest Temperature 417 | . 20 318 417 . . 8 Average Temperature 106 | . 5 87 126 . . 8 Received Heat Transfer 1053 | . 165 261 423 . 18 186 Effects 2 | . . . 2 . . . Interference 2 | . . . 2 . . . Siege Activations . | . . . . . . . Robots Corrupted 1 | . . 1 . . . . Combat Hostiles 1 | . . 1 . . . . Parts Fried 1 | . . 1 . . . . Impact Corruptions 1 | . . 1 . . . . Robots Melted 1 | . . . 1 . . . Combat Hostiles 1 | . . . 1 . . . Parts Melted 9 | . . 3 6 . . . Heat Transferred 4625 | . . 1332 3071 . 222 . Parts Sabotaged . | . . . . . . . Parts Stolen . | . . . . . . . Parts Stripped . | . . . . . . . Power Chain Reactions . | . . . . . . . Alert | -11 -10 -9 -8 -7 -7 -6 ------- Run | Yrd Mat Mat Mat Fac DSF Fac Peak Influence 585 | . 130 366 585 232 152 134 Initial 228 | . . 46 131 228 142 41 Average 189 | . 71 170 360 230 128 51 Maximum Alert Level 2 | . . 1 2 1 . . Low Security (%) 61 | 100 100 59 18 . 100 100 Level 1 23 | . . 40 33 100 . . Level 2 14 | . . . 47 . . . Level 3 . | . . . . . . . Level 4 . | . . . . . . . Level 5 . | . . . . . . . High Security . | . . . . . . . Max Security . | . . . . . . . Squads Dispatched 6 | . . 1 1 . 1 3 Investigation . | . . . . . . . Extermination 1 | . . . . . . 1 Reinforcement 5 | . . 1 1 . 1 2 Assault . | . . . . . . . Garrison . | . . . . . . . Intercept . | . . . . . . . Searches Triggered . | . . . . . . . Construction Impeded 1 | . . . . . . 1 Haulers Reinforced . | . . . . . . . Active Scanning Responses . | . . . . . . . Cargo Convoy Interrupts . | . . . . . . . Stealth | -11 -10 -9 -8 -7 -7 -6 --------- Run | Yrd Mat Mat Mat Fac DSF Fac Distress Signals 4 | . 1 2 1 . . . Communications Jammed . | . . . . . . . Distress Signals . | . . . . . . . Times Spotted 64 | . 6 25 21 . 6 6 Peak Tracking Total 6 | . 3 6 5 . 3 2 Tactical Retreats 1 | . . . 1 . . . Traps | -11 -10 -9 -8 -7 -7 -6 ------- Run | Yrd Mat Mat Mat Fac DSF Fac Traps Triggered 7 | . . 3 . . 1 3 Indirectly . | . . . . . . . Trap Hack Attempts . | . . . . . . . Triggered . | . . . . . . . Disarmed . | . . . . . . . Reprogrammed . | . . . . . . . Reused . | . . . . . . . Traps Extracted . | . . . . . . . Installed . | . . . . . . . Triggered . | . . . . . . . Machines | -11 -10 -9 -8 -7 -7 -6 ---------- Run | Yrd Mat Mat Mat Fac DSF Fac Machines Disabled 2 | . . . 2 . . . Max in Single Turn 1 | . . . 1 . . . Machines Repaired . | . . . . . . . Machines Dismantled . | . . . . . . . Machines Sabotaged . | . . . . . . . Overloaded Fab Kills . | . . . . . . . Hacking | -11 -10 -9 -8 -7 -7 -6 --------- Run | Yrd Mat Mat Mat Fac DSF Fac Machines Accessed 4 | . 2 . . 1 . 1 Terminals 4 | . 2 . . 1 . 1 Fabricators . | . . . . . . . Repair Stations . | . . . . . . . Recycling Units . | . . . . . . . Scanalyzers . | . . . . . . . Garrison Access . | . . . . . . . Total Hacks 4 | . 2 . . 1 . 1 Successful 4 | . 2 . . 1 . 1 Failed . | . . . . . . . Catastrophic . | . . . . . . . Database Lockouts . | . . . . . . . Manual . | . . . . . . . Terminals 4 | . 2 . . 1 . 1 Fabricators . | . . . . . . . Repair Stations . | . . . . . . . Recycling Units . | . . . . . . . Scanalyzers . | . . . . . . . Garrison Access . | . . . . . . . Terminal Hacks 4 | . 2 . . 1 . 1 Record 2 | . 2 . . . . . Open DSF 2 | . . . . 1 . 1 Fabricator Hacks . | . . . . . . . Repair Station Hacks . | . . . . . . . Recycling Unit Hacks . | . . . . . . . Scanalyzer . | . . . . . . . Garrison Access Hacks . | . . . . . . . Unauthorized Hacks . | . . . . . . . Terminals . | . . . . . . . Fabricators . | . . . . . . . Repair Stations . | . . . . . . . Recycling Units . | . . . . . . . Scanalyzers . | . . . . . . . Garrison Access . | . . . . . . . Data Cores Recovered . | . . . . . . . Used . | . . . . . . . Hacking Detections 2 | . 2 . . . . . Full Trace Events . | . . . . . . . Feedback Events . | . . . . . . . Feedback Blocked . | . . . . . . . Robot Schematics Acquired . | . . . . . . . Robots Built . | . . . . . . . Authchips . | . . . . . . . Time . | . . . . . . . Total Robot Build Rating . | . . . . . . . Part Schematics Acquired . | . . . . . . . Parts Built . | . . . . . . . Authchips . | . . . . . . . Time . | . . . . . . . Total Part Build Rating . | . . . . . . . Parts Repaired . | . . . . . . . Time . | . . . . . . . Parts Recycled . | . . . . . . . Recycled Matter . | . . . . . . . Retrieved Matter . | . . . . . . . Retrieved Components . | . . . . . . . Parts Scanalyzed . | . . . . . . . Part Schematics Acquired . | . . . . . . . Parts Damaged . | . . . . . . . Bothacking | -11 -10 -9 -8 -7 -7 -6 ------------ Run | Yrd Mat Mat Mat Fac DSF Fac Used RIF Installer . | . . . . . . . Robots Hacked . | . . . . . . . Non-combat . | . . . . . . . Combat . | . . . . . . . Robot Hacks Applied . | . . . . . . . Relay Couplers Released . | . . . . . . . Fabnet Peak Effective % . | . . . . . . . Robots Rewired . | . . . . . . . Allies Hacked . | . . . . . . . Hacks Repelled . | . . . . . . . Allies | -11 -10 -9 -8 -7 -7 -6 -------- Run | Yrd Mat Mat Mat Fac DSF Fac Total Allies . | . . . . . . . Largest Group . | . . . . . . . Highest-Rated Group . | . . . . . . . Highest-Rated Ally . | . . . . . . . Total Orders . | . . . . . . . Ally Attacks . | . . . . . . . Total Damage . | . . . . . . . Kills . | . . . . . . . Allies Corrupted . | . . . . . . . Allies Melted . | . . . . . . . Intel | -11 -10 -9 -8 -7 -7 -6 ------- Run | Yrd Mat Mat Mat Fac DSF Fac Robot Analysis Total . | . . . . . . . Derelict Logs Recovered . | . . . . . . . Drone Launches . | . . . . . . . Drone Recoveries . | . . . . . . . Exploration | -11 -10 -9 -8 -7 -7 -6 ------------- Run | Yrd Mat Mat Mat Fac DSF Fac Turns Passed 2478 | 61 189 750 777 9 139 553 Spaces Moved 1215 | 51 117 365 390 3 61 228 Core 42 | 16 . . . . . 26 Treads 630 | . . 194 390 3 43 . Legs 315 | 35 117 163 . . . . Wheels . | . . . . . . . Hover . | . . . . . . . Flight 228 | . . 8 . . 18 202 Fastest Speed 37 | 50 120 37 160 160 160 109 Average Speed 162 | 98 120 145 160 160 195 223 Slowest Speed 600 | 120 120 240 160 160 320 600 Overloaded Moves . | . . . . . . . Propulsion Burnouts . | . . . . . . . Robots Hopped . | . . . . . . . Cave-ins Triggered . | . . . . . . . Exploration Rate (%) 33 | 4 31 31 32 . 94 8 Regions Visited 6 Branch Regions . Pre-discovered Areas . | . . . . . . . Known Exits Taken 1 | . . . . 1 . . Unknown Exits Taken 4 | 1 1 1 1 . . . Scrap Searched . | . . . . . . . Spaces Dug . | . . . . . . . Terrain Destroyed 82 | . . . . . . 82 Melee . | . . . . . . . Projectile . | . . . . . . . AOE 82 | . . . . . . 82 Terrain Rammed . | . . . . . . . Walls Destroyed . | . . . . . . . Machines Disabled . | . . . . . . . Actions | -11 -10 -9 -8 -7 -7 -6 --------- Run | Yrd Mat Mat Mat Fac DSF Fac Total 1493 | 62 133 500 461 7 77 253 Wait 43 | . . 32 5 . 6 . Move 1209 | 50 116 364 389 2 60 228 Hop . | . . . . . . . Pick Up 51 | 6 1 24 10 . 3 7 Fast Attach 5 | . . 2 2 . . 1 Attach 35 | 6 . 14 3 1 5 6 Detach 1 | . . 1 . . . . Swap 11 | . . 2 7 2 . . Drop 30 | . . 17 8 2 1 2 Fire 101 | . 16 37 37 . 2 9 Melee 7 | . . 7 . . . . Ram . | . . . . . . . Kick . | . . . . . . . Crush . | . . . . . . . Escape Stasis . | . . . . . . . Rewire . | . . . . . . . Trap . | . . . . . . . Miscellaneous . | . . . . . . . Route ------- -11/Scrapyard -10/Materials -9/Materials (discovered 3 exits: [*Mat] / [*Sto x2]) -8/Materials -7/Factory -7/DSF -6/Factory History --------- Turn | Location | Event 13 | -11/Scrapyard | Discovered new exit (range 15) 62 | -11/Scrapyard | Entered Materials 145 | -10/Materials | Discovered new exit (range 16) 251 | -10/Materials | Entered another Materials area 251 | -9/Materials | Evolved 2 slots: Propulsion x1, Weapon x1 251 | -9/Materials | Discovered new exit (range 16) 266 | -9/Materials | Discovered new exit (range 15) 310 | -9/Materials | Build established: Mutant 955 | -9/Materials | Discovered new exit (range 14) 1001 | -9/Materials | Entered another Materials area 1001 | -8/Materials | Evolved 2 slots: Propulsion x1, Utility x1 1060 | -8/Materials | Build established: Tank 1411 | -8/Materials | Build established: Scavenger-Tank 1752 | -8/Materials | Discovered new exit (range 15) 1778 | -8/Materials | Entered Factory 1778 | -7/Factory | Evolved 2 slots: Utility x1, Weapon x1 1782 | -7/Factory | Identified exit to DSF 1787 | -7/Factory | Entered DSF 1787 | -7/DSF | Met a pair of Sappers preparing to destroy DSF 1809 | -7/DSF | Additional patrols routed to DSF 1823 | -7/DSF | Found Hvy. Reflective Plating 1827 | -7/DSF | Found Hvy. Reflective Plating 1894 | -7/DSF | Discovered new exit (range 16) 1926 | -7/DSF | Entered Factory 1926 | -6/Factory | Evolved 2 slots: Weapon x2 1928 | -6/Factory | Lost 10 parts (1p4n1u4w) 2180 | -6/Factory | Build established: Mutant 2479 | -6/Factory | Self-destructed Last Messages --------------- 02409_ U-05 Engineer builds a Wall. 02413_ U-05 Engineer lays Concrete. 02414_ U-05 Engineer builds a Wall. 02422_ U-05 Engineer lays Concrete. 02426_ ALERT: Rogue bot located, Programmers report to Factory Zone 4P. 02426_ U-05 Engineer builds a Wall. 02430_ U-05 Engineer lays Concrete. 02432_ U-05 Engineer builds a Wall. 02442_ Triggered Blade Trap. 02442_ Massive razor-sharp blades shoot up from within the floor. 02442_ Rocket Launcher severed. 02445_ Acquired Rocket Launcher. 02450_ The unstable cave ceiling collapses. 02476_ ALERT: Hostiles spotted, dispatching reinforcements to Terminal F019. 02478_ Rocket Launcher destroyed. 02479_ Connecting with DSF Access... 02479_ Current location identified: Factory Map ----- +----------------------------------------------------+ | #???# ???????????????????????????? | | #???# #?????????????????????????????? | | ######### #??#+######???????????????????? | | #??# """ +???????????????????? | | ## #### "T" #???????????????????? | | ?# + #???????????????????? | | ?# # #???????????????????? | | ?# # #???????????????????? | | ?# # #?"?????????????????? | | "" """ """ ########?"?????????????????? | | "" """ """ #???????? ?????????????????? | | "Y """ """ #????????+?????????????????? | | "" #???????? ?????????????????? | | "" """ """ #???????? #????????????????? | | ## """ """ #?????### #????????????????? | | ?# """ """ #?????+ #????????????????? | | ?# #?????# #????????????????? | | ?# """ """ #?????+ +????????????????? | | ?? """ """ #?????# w#????????????????? | | ?# """ """ #?????# #????????????????? | | ?# #?????# #????????????????? | | ?# """ """ #?????# #????????????????? | | ?????""" """ #?????# #????????????????? | | ?# """ """ #?????# ##???????????????? | | ?# #?????# T#???????????????? | | ?# """ """ #?????# @ #???????????????? | | ??? """ """ #?##??# ##???????????????? | | ?# """ """ #? ??# #????????????????? | | ?# #?? ?# #????????????????? | | ## """ """ #?? ?# #????????????????? | | """ """ # ? ?# #????????????????? | | ?# ^""" """ # ?# #????????????????? | | ?# # ? ?# +????????????????? | | ?# !* # ?# #????????????????? | | ?# !** # # ^^#????????????????? | | ?# !** # # #????????????????? | | ?# # # #????????????????? | | ?# # + #???########?????? | | ?######## # # ##? #?????? | | ????????# # # # # ## * #?????? | | ???????## ## ## p %#?????? | | ???????# ##### ! #?????? | | ???????# * ! ! #?????? | | ???????# #####! #?????? | | ???????# # # #?????? | | ???????# # #### # # #?????? | | ???????# ! ### # #############?????? | | ???????# ! #???### ##????????????????? | | ???????# ! #?????# #?????????????????? | | ???????# #?????# #?????????????????? | +----------------------------------------------------+ Best States ------------- Heat Dissipation 63 Energy Generation 14 Energy Capacity 280 Matter Stores 300 Matter Capacity 300 Sight Range 20 Terrain Scan Density 10 Armor Coverage 600 Resistance: KI 20 Resistance: TH 45 Resistance: EX 20 Resistance: EM 20 Resistance: I 20 Resistance: S 20 Resistance: P 20 Evasion (%) 55 Recoil Reduction 4 Offensive Hacking 10 Item Schematics ----------------- None Robot Schematics ------------------ None Fabricated ------------ Nothing Alien Tech Used ----------------- None Achievements -------------- None Challenges ------------ Unstable Evolution Game ------ Seed ActiveMediumCompressor Manual? 0 Play Time 00:24:37 Cumulative 182.3 hours Start 2024.08.09 @ 16:24:10 End 2024.08.09 @ 16:45:46 Sessions 1 Manual Loads 0 Difficulty Adventurer Special Mode None Game No. 284 Rogue 241 Adventurer 43 Explorer 0 Win Type - Total 4 Types 1/1/0/2/0/0/0/0/0 Lore% 29 Gallery% 55 Achievement% 52 Wizard Run 0 Options --------- Layout 1 ASCII 0 Keyboard 0 Movement Arrows Keybinds 0 Fullscreen 1 Font 16/SmallcapsGlow Map View 55x38 Zoom Use 0% Tactical HUD 1 Map Filters NONE Filters NONE Steam 1 RUN: 3dfeb885-73e6-41a1-a961-9664722f4846